[Event "CZE-ch Youth B12 2022"]
[Site "Luhacovice"]
[Date "2022.03.17"]
[Round "7.12"]
[White "Ruzicka, Oto"]
[Black "Pasek, Josef"]
[Result "1/2-1/2"]
[ECO "B32"]
[WhiteElo "1233"]
[BlackElo "1351"]
[Annotator "NA"]
[PlyCount "105"]
[EventDate "2022.03.12"]
[EventType "swiss"]
[EventCountry "CZE"]
[SourceTitle "playchess.com"]
[Source "ChessBase"]
[SourceQuality "1"]
[TimeControl "5400+30"]

1. e4 {[%emt 0:00:07]} c5 {[%emt 0:00:18]} 2. Nf3 {[%emt 0:00:18]} Nc6 {[%emt 0:00:11]} 3. d4 {[%emt 0:00:36]} cxd4 {[%emt 0:02:18]} 4. Nxd4 {[%emt 0:00:24]} e5 {[%emt 0:00:51]} 5. Nb5 {[%emt 0:01:15]} d6 {[%emt 0:01:46]} 6. c4 {[%emt 0:00:46]} a6 {[%emt 0:02:47]} 7. N5a3 {[%emt 0:01:14]} Nge7 {[%emt 0:01:10]} 8. Nc3 {[%emt 0:01:49]} g6 {[%emt 0:01:53]} 9. Bg5 {[%emt 0:02:32]} Bg7 {[%emt 0:04:35]} 10. Nc2 {[%emt 0:02:46]} O-O {[%emt 0:00:38]} 11. Be2 {[%emt 0:02:25]} h6 {[%emt 0:07:37]} 12. Bh4 {[%emt 0:06:13]} f5 {[%emt 0:01:36]} 13. f3 {[%emt 0:03:25]} g5 {[%emt 0:03:14]} 14. Bf2 {[%emt 0:01:36]} f4 {[%emt 0:02:31]} 15. O-O {[%emt 0:02:20]} Bf6 {[%emt 0:06:24]} 16. Rb1 {[%emt 0:18:24]} b6 {[%emt 0:09:39]} 17. a4 Bd7 18. Qxd6 {[%emt 0:12:12]} Be8 {[%emt 0:09:34]} 19. Qxd8 {[%emt 0:01:56]} Rxd8 {[%emt 0:00:13]} 20. Rfd1 {[%emt 0:01:17]} Nd4 {[%emt 0:02:32]} 21. Nxd4 {[%emt 0:01:35]} exd4 {[%emt 0:00:10]} 22. Nd5 {[%emt 0:00:32]} Nxd5 {[%emt 0:01:14]} 23. cxd5 {[%emt 0:00:06]} a5 {[%emt 0:01:03]} 24. b3 {[%emt 0:00:42]} Kf7 {[%emt 0:01:09]} 25. Bxd4 {[%emt 0:00:26]} Bxd4+ {[%emt 0:00:07]} 26. Rxd4 {[%emt 0:00:07]} Kf6 {[%emt 0:00:11]} 27. Rc1 {[%emt 0:01:21]} Ke5 {[%emt 0:07:33]} 28. Rd2 {[%emt 0:01:47]} Bd7 {[%emt 0:00:32]} 29. Bc4 {[%emt 0:02:15]} g4 {[%emt 0:03:26]} 30. Kf2 {[%emt 0:05:06]} gxf3 {[%emt 0:00:48]} 31. gxf3 {[%emt 0:00:15]} Rg8 {[%emt 0:00:21]} 32. Rdd1 {[%emt 0:03:38]} Rg7 {[%emt 0:02:22]} 33. Bf1 {[%emt 0:04:14]} Rc8 {[%emt 0:00:59]} 34. Rc4 {[%emt 0:02:52]} Rxc4 {[%emt 0:01:14]} 35. Bxc4 {[%emt 0:01:05]} Bh3 {[%emt 0:00:12]} 36. Bf1 {[%emt 0:00:45]} Bc8 {[%emt 0:00:23]} 37. d6 {[%emt 0:02:31]} Bd7 {[%emt 0:02:42]} 38. Rd5+ {[%emt 0:00:54]} Kf6 {[%emt 0:01:34]} 39. e5+ {[%emt 0:01:38]} Ke6 {[%emt 0:00:27]} 40. Bc4 {[%emt 0:00:25]} Kf5 {[%emt 0:00:47]} 41. Bd3+ {[%emt 0:03:35]} Ke6 {[%emt 0:00:08]} 42. Bc4 {[%emt 0:01:34]} Kf5 {[%emt 0:00:09]} 43. e6+ {[%emt 0:01:13]} Kxe6 {[%emt 0:00:45]} 44. Rxa5+ {[%emt 0:00:50]} Kxd6 {[%emt 0:00:08]} 45. Rh5 {[%emt 0:00:40]} Rg6 {[%emt 0:00:21]} 46. Bd3 {[%emt 0:00:19]} Rf6 {[%emt 0:00:08]} 47. a5 {[%emt 0:00:39]} bxa5 {[%emt 0:00:13]} 48. Rxa5 {[%emt 0:00:09]} Bc8 {[%emt 0:00:46]} 49. b4 {[%emt 0:00:55]} Bb7 {[%emt 0:00:47]} 50. Be4 {[%emt 0:00:58]} Bc8 {[%emt 0:01:06]} 51. Rc5 {[%emt 0:00:18]} Bd7 {[%emt 0:00:19]} 52. Rd5+ {[%emt 0:01:32]} Kc7 {[%emt 0:00:16]} 53. Rc5+ {[%emt 0:01:30]} 1/2-1/2

[Event "CZE-ch Youth B12 2022"]
[Site "Luhacovice"]
[Date "2022.03.18"]
[Round "8.1"]
[White "Delgerdalai, Bayarjavkhlan"]
[Black "Mikulka, Martin Michael"]
[Result "1-0"]
[ECO "A59"]
[WhiteElo "2074"]
[BlackElo "1406"]
[Annotator "ChessBase"]
[PlyCount "97"]
[EventDate "2022.03.12"]
[EventType "swiss"]
[EventCountry "CZE"]
[SourceTitle "playchess.com"]
[Source "ChessBase"]
[SourceQuality "1"]
[TimeControl "5400+30"]

1. d4 Nf6 2. c4 c5 3. d5 b5 4. cxb5 a6 5. bxa6 Bxa6 6. Nc3 g6 7. e4 Bxf1 8. Kxf1 d6 9. g3 Bg7 10. Kg2 O-O 11. Nf3 Nbd7 12. Bf4 Qb6 13. Qc2 Rfb8 14. Rhb1 Ne8 15. Be3 Qb4 16. Nd2 Nc7 17. a3 Qb7 18. Ra2 Na6 19. b3 Ne5 20. h3 Nd7 21. Nc4 Ne5 22. f4 Nxc4 23. bxc4 Qc8 24. Rxb8 Rxb8 25. Nb5 Nc7 26. Na7 Qd7 27. Nc6 Rb6 28. Bd2 Rxc6 29. dxc6 Qxc6 30. Kh2 Ne6 31. Be3 Bd4 32. Bxd4 Nxd4 33. Qd3 Qa4 34. Rb2 Qa8 35. g4 f6 36. Qe3 Qa6 37. e5 Kf7 38. exf6 Kxf6 39. Rb8 Qa7 40. Rb1 Qa4 41. Rb7 Nc6 42. Rc7 h6 43. Qe4 d5 44. Qxd5 Qc2+ 45. Qg2 Nd4 46. Qxc2 Nxc2 47. a4 Nd4 48. a5 Ne6 49. Rc6 1-0

[Event "CZE-ch Youth B12 2022"]
[Site "Luhacovice"]
[Date "2022.03.18"]
[Round "8.2"]
[White "Popov, Roman"]
[Black "Kutil, Adam"]
[Result "1-0"]
[ECO "A52"]
[WhiteElo "2353"]
[BlackElo "1544"]
[Annotator "RC"]
[PlyCount "92"]
[EventDate "2022.03.12"]
[EventType "swiss"]
[EventCountry "CZE"]
[SourceTitle "playchess.com"]
[Source "ChessBase"]
[SourceQuality "1"]
[TimeControl "5400+30"]

1. d4 {[%emt 0:00:12]} Nf6 {[%emt 0:00:13]} 2. c4 {[%emt 0:00:21]} e5 {[%emt 0:00:24]} 3. dxe5 {[%emt 0:00:50]} Ng4 {[%emt 0:01:40]} 4. Nf3 {[%emt 0:01:22]} Bc5 {[%emt 0:01:07]} 5. e3 {[%emt 0:02:54]} Nc6 {[%emt 0:00:42]} 6. a3 {[%emt 0:06:16]} Ngxe5 {[%emt 0:06:24]} 7. Nc3 {[%emt 0:08:20]} O-O {[%emt 0:03:29]} 8. b4 {[%emt 0:05:10]} Be7 {[%emt 0:03:13]} 9. Bb2 {[%emt 0:04:38]} d6 {[%emt 0:06:02]} 10. Be2 {[%emt 0:01:57]} Be6 {[%emt 0:05:00]} 11. Nd5 {[%emt 0:05:05]} Bf6 {[%emt 0:10:31]} 12. Qc2 {[%emt 0:09:12]} Nxf3+ {[%emt 0:03:56]} 13. Bxf3 {[%emt 0:01:27]} Bxb2 {[%emt 0:01:23]} 14. Qxb2 {[%emt 0:00:39]} Ne5 {[%emt 0:02:34]} 15. Be2 {[%emt 0:15:13]} c6 {[%emt 0:05:48]} 16. Nf4 {[%emt 0:03:09]} Bxc4 {[%emt 0:12:13]} 17. Bxc4 {[%emt 0:03:27]} Nxc4 {[%emt 0:00:12]} 18. Qd4 {[%emt 0:02:31]} b5 {[%emt 0:07:42]} 19. h4 {[%emt 0:06:00]} Qb6 {[%emt 0:03:34]} 20. Qc3 {[%emt 0:02:02]} a5 {[%emt 0:01:24]} 21. O-O {[%emt 0:01:08]} axb4 {[%emt 0:02:48]} 22. axb4 {[%emt 0:00:13]} Rfe8 {[%emt 0:03:33]} 23. Nh5 {[%emt 0:06:28]} f6 {[%emt 0:01:06]} 24. Ng3 {[%emt 0:00:35]} Kf8 {[%emt 0:02:19]} 25. Nf5 {[%emt 0:03:19]} Ra7 {[%emt 0:06:22]} 26. Rfd1 {[%emt 0:03:06]} Rxa1 {[%emt 0:03:27]} 27. Qxa1 {[%emt 0:02:46]} c5 {[%emt 0:03:35]} 28. Qc3 {[%emt 0:02:49]} Re5 {[%emt 0:01:13]} 29. bxc5 {[%emt 0:01:17]} dxc5 {[%emt 0:01:06]} 30. Qc2 {[%emt 0:01:34]} g6 {[%emt 0:01:44]} 31. Ng3 {[%emt 0:00:54]} Re6 {[%emt 0:00:42]} 32. Rd7 {[%emt 0:00:44]} Re7 {[%emt 0:00:25]} 33. Rd5 {[%emt 0:00:40]} Qc6 {[%emt 0:00:35]} 34. Qd3 {[%emt 0:00:33]} Ne5 {[%emt 0:00:31]} 35. Rd8+ {[%emt 0:00:36]} Re8 {[%emt 0:00:30]} 36. Rxe8+ {[%emt 0:00:20]} Kxe8 {[%emt 0:00:25]} 37. Qb3 {[%emt 0:00:37]} c4 {[%emt 0:00:30]} 38. Qc3 {[%emt 0:00:21]} Kf7 {[%emt 0:00:33]} 39. Ne2 {[%emt 0:00:25]} Nd3 {[%emt 0:00:31]} 40. Nd4 {[%emt 0:00:36]} Qc5 {[%emt 0:00:24]} 41. Qa5 {[%emt 0:00:40]} b4 {[%emt 0:00:32]} 42. Qd8 {[%emt 0:00:20]} Qe7 {[%emt 0:00:37]} 43. Qd5+ {[%emt 0:00:15]} Kg7 {[%emt 0:00:19]} 44. Qxc4 {[%emt 0:00:12]} Ne5 {[%emt 0:00:28]} 45. Qd5 {[%emt 0:00:45]} Kh6 {[%emt 0:00:42]} 46. Qe4 {[%emt 0:00:56]} Qf8 1-0

[Event "CZE-ch Youth B12 2022"]
[Site "Luhacovice"]
[Date "2022.03.18"]
[Round "8.3"]
[White "Roubal, Matyas"]
[Black "Mik, Tomas"]
[Result "0-1"]
[ECO "B07"]
[WhiteElo "1870"]
[BlackElo "1643"]
[Annotator "NA"]
[PlyCount "84"]
[EventDate "2022.03.12"]
[EventType "swiss"]
[EventCountry "CZE"]
[SourceTitle "playchess.com"]
[Source "ChessBase"]
[SourceQuality "1"]
[TimeControl "5400+30"]

1. e4 {[%emt 0:00:08]} d6 {[%emt 0:00:14]} 2. d4 {[%emt 0:00:19]} Nf6 {[%emt 0:00:08]} 3. Nc3 {[%emt 0:00:09]} Nbd7 {[%emt 0:00:25]} 4. Nf3 {[%emt 0:00:33]} e5 {[%emt 0:00:12]} 5. g4 {[%emt 0:02:46]} Nxg4 {[%emt 0:02:16]} 6. Rg1 {[%emt 0:00:22]} Ngf6 {[%emt 0:00:48]} 7. Be3 {[%emt 0:00:26]} c6 {[%emt 0:03:19]} 8. Qd2 {[%emt 0:00:16]} b5 {[%emt 0:05:31]} 9. a3 {[%emt 0:05:07]} Qc7 {[%emt 0:00:45]} 10. O-O-O {[%emt 0:11:57]} a5 {[%emt 0:01:59]} 11. Bd3 {[%emt 0:07:35]} b4 {[%emt 0:09:12]} 12. Nb1 {[%emt 0:05:20]} Rb8 {[%emt 0:03:24]} 13. a4 {[%emt 0:04:37]} c5 {[%emt 0:02:34]} 14. dxe5 $11 {[%emt 0:07:09]} dxe5 {[%emt 0:01:35]} 15. Bc4 {[%emt 0:03:56]} h6 {[%emt 0:05:08]} 16. Nh4 {[%emt 0:17:30]} Nb6 {[%emt 0:10:07]} 17. Bb5+ {[%emt 0:03:34]} Bd7 {[%emt 0:00:21]} 18. Bxd7+ {[%emt 0:00:19]} Nbxd7 {[%emt 0:00:11]} 19. f4 {[%emt 0:02:00]} c4 {[%emt 0:02:28]} 20. fxe5 {[%emt 0:02:00]} c3 {[%emt 0:01:34]} 21. bxc3 {[%emt 0:09:10]} Nxe4 {[%emt 0:01:24]} 22. Qd5 {[%emt 0:00:53]} Nxc3 {[%emt 0:04:29]} 23. Nxc3 {[%emt 0:03:35]} bxc3 {[%emt 0:00:24]} 24. Rd4 {[%emt 0:02:55]} Qb7 {[%emt 0:08:42]} 25. Qxb7 {[%emt 0:01:01]} Rxb7 {[%emt 0:00:08]} 26. Rd5 {[%emt 0:01:00]} Ba3+ {[%emt 0:02:48]} 27. Kd1 {[%emt 0:00:04]} Rb1+ {[%emt 0:01:10]} 28. Ke2 {[%emt 0:00:04]} Rxg1 {[%emt 0:00:42]} 29. Bxg1 {[%emt 0:00:03]} Bb4 {[%emt 0:00:44]} 30. Nf5 {[%emt 0:02:46]} g6 {[%emt 0:00:58]} 31. Nd4 {[%emt 0:00:17]} Ke7 {[%emt 0:03:38]} 32. Nc6+ {[%emt 0:01:11]} Ke6 {[%emt 0:00:07]} 33. Nxb4 {[%emt 0:00:10]} axb4 {[%emt 0:00:08]} 34. Rb5 {[%emt 0:00:12]} Rb8 {[%emt 0:00:46]} 35. Rxb8 {[%emt 0:01:48]} Nxb8 {[%emt 0:00:07]} 36. Kd3 {[%emt 0:02:38]} Kd5 {[%emt 0:00:41]} 37. a5 {[%emt 0:00:47]} Na6 {[%emt 0:04:58]} 38. Bb6 {[%emt 0:01:25]} Kxe5 {[%emt 0:03:49]} 39. Kc4 {[%emt 0:01:00]} Ke4 {[%emt 0:01:01]} 40. Bd4 {[%emt 0:01:28]} f5 {[%emt 0:00:34]} 41. Kb5 {[%emt 0:00:48]} Kxd4 {[%emt 0:00:28]} 42. Kxa6 {[%emt 0:00:07]} b3 {[%emt 0:00:15]} 0-1

[Event "CZE-ch Youth B12 2022"]
[Site "Luhacovice"]
[Date "2022.03.18"]
[Round "8.4"]
[White "Stary, Vojtech"]
[Black "Kroulik, Vaclav"]
[Result "1-0"]
[ECO "A32"]
[WhiteElo "1640"]
[BlackElo "1645"]
[Annotator "NA"]
[PlyCount "61"]
[EventDate "2022.03.12"]
[EventType "swiss"]
[EventCountry "CZE"]
[SourceTitle "playchess.com"]
[Source "ChessBase"]
[SourceQuality "1"]
[TimeControl "5400+30"]

1. Nf3 {[%emt 0:00:09]} Nf6 {[%emt 0:00:19]} 2. c4 {[%emt 0:00:12]} c5 {[%emt 0:00:31]} 3. d4 {[%emt 0:00:14]} cxd4 {[%emt 0:00:37]} 4. Nxd4 {[%emt 0:00:07]} e6 {[%emt 0:00:50]} 5. Nc3 {[%emt 0:00:31]} a6 {[%emt 0:01:11]} 6. g3 {[%emt 0:00:30]} Nc6 {[%emt 0:00:28]} 7. Bg2 {[%emt 0:00:49]} Qc7 {[%emt 0:00:52]} 8. Nc2 {[%emt 0:01:51]} Be7 {[%emt 0:05:09]} 9. O-O {[%emt 0:00:56]} O-O {[%emt 0:00:34]} 10. b3 {[%emt 0:02:56]} d6 {[%emt 0:01:51]} 11. Bb2 {[%emt 0:00:27]} Bd7 {[%emt 0:00:52]} 12. e4 {[%emt 0:02:52]} Rac8 {[%emt 0:03:33]} 13. Kh1 {[%emt 0:02:57]} Na7 {[%emt 0:02:10]} 14. Nd4 {[%emt 0:10:57]} b5 {[%emt 0:04:33]} 15. cxb5 {[%emt 0:00:52]} Nxb5 {[%emt 0:00:17]} 16. Ncxb5 {[%emt 0:00:46]} Bxb5 {[%emt 0:00:50]} 17. Re1 {[%emt 0:05:22]} Qb6 {[%emt 0:02:26]} 18. f4 {[%emt 0:06:25]} Rfd8 {[%emt 0:01:35]} 19. Rc1 {[%emt 0:07:55]} Rxc1 {[%emt 0:04:54]} 20. Qxc1 {[%emt 0:03:46]} d5 {[%emt 0:02:47]} 21. exd5 {[%emt 0:04:53]} Nxd5 {[%emt 0:01:16]} 22. f5 {[%emt 0:19:03]} Nb4 {[%emt 0:13:24]} 23. fxe6 {[%emt 0:09:09]} Rxd4 {[%emt 0:03:39]} 24. exf7+ {[%emt 0:00:41]} Kxf7 {[%emt 0:10:40]} 25. Qe3 {[%emt 0:01:39]} Nc6 {[%emt 0:01:43]} 26. Qe6+ {[%emt 0:04:03]} Kf8 {[%emt 0:02:25]} 27. Bxd4 {[%emt 0:01:05]} Qxd4 {[%emt 0:00:29]} 28. Bxc6 {[%emt 0:01:24]} Bxc6+ {[%emt 0:00:13]} 29. Qxc6 {[%emt 0:00:16]} Qb4 {[%emt 0:03:50]} 30. Qe4 {[%emt 0:00:36]} Qd6 {[%emt 0:00:35]} 31. Qf4+ {[%emt 0:00:27]} 1-0

[Event "CZE-ch Youth B12 2022"]
[Site "Luhacovice"]
[Date "2022.03.18"]
[Round "8.5"]
[White "Vana, Jan"]
[Black "Soucek, Andrej"]
[Result "1-0"]
[ECO "B20"]
[WhiteElo "1609"]
[BlackElo "1399"]
[Annotator "NA"]
[PlyCount "41"]
[EventDate "2022.03.12"]
[EventType "swiss"]
[EventCountry "CZE"]
[SourceTitle "playchess.com"]
[Source "ChessBase"]
[SourceQuality "1"]
[TimeControl "5400+30"]

1. e4 {[%emt 0:00:04]} c5 {[%emt 0:00:08]} 2. b4 {[%emt 0:00:08]} e6 {[%emt 0:04:15]} 3. bxc5 {[%emt 0:00:16]} Bxc5 {[%emt 0:00:00]} 4. d4 {[%emt 0:00:53]} Bb6 {[%emt 0:00:59]} 5. c3 {[%emt 0:00:36]} d6 {[%emt 0:02:11]} 6. Bd3 {[%emt 0:00:43]} Nc6 {[%emt 0:01:29]} 7. f4 {[%emt 0:03:40]} Nge7 {[%emt 0:03:31]} 8. Nf3 {[%emt 0:00:59]} d5 {[%emt 0:08:45]} 9. e5 {[%emt 0:01:08]} Ng6 {[%emt 0:01:47]} 10. O-O {[%emt 0:02:14]} O-O {[%emt 0:03:22]} 11. Ba3 {[%emt 0:03:18]} Re8 {[%emt 0:01:49]} 12. Ng5 {[%emt 0:02:46]} Nce7 {[%emt 0:06:36]} 13. Qh5 {[%emt 0:01:32]} h6 {[%emt 0:02:36]} 14. Nxf7 {[%emt 0:01:01]} Kxf7 {[%emt 0:02:37]} 15. Bxe7 {[%emt 0:00:54]} Rxe7 {[%emt 0:00:32]} 16. Qxg6+ {[%emt 0:00:46]} Kf8 {[%emt 0:00:52]} 17. Nd2 {[%emt 0:05:12]} Qe8 {[%emt 0:14:39]} 18. Qh7 {[%emt 0:02:46]} Qf7 {[%emt 0:14:00]} 19. f5 {[%emt 0:02:39]} Ke8 {[%emt 0:00:52]} 20. f6 {[%emt 0:00:28]} Kd7 {[%emt 0:04:58]} 21. Bg6 {[%emt 0:01:33]} 1-0

[Event "CZE-ch Youth B12 2022"]
[Site "Luhacovice"]
[Date "2022.03.18"]
[Round "8.6"]
[White "Martirosyan, David"]
[Black "Mydlar, Matej"]
[Result "1-0"]
[ECO "B28"]
[WhiteElo "1725"]
[BlackElo "1554"]
[Annotator "NA"]
[PlyCount "69"]
[EventDate "2022.03.12"]
[EventType "swiss"]
[EventCountry "CZE"]
[SourceTitle "playchess.com"]
[Source "ChessBase"]
[SourceQuality "1"]
[TimeControl "5400+30"]

1. e4 {[%emt 0:00:09]} c5 {[%emt 0:00:35]} 2. Nf3 {[%emt 0:00:11]} a6 {[%emt 0:01:44]} 3. c4 {[%emt 0:00:48]} e6 {[%emt 0:02:02]} 4. Nc3 {[%emt 0:01:13]} Nc6 {[%emt 0:01:03]} 5. d4 {[%emt 0:01:03]} cxd4 {[%emt 0:00:22]} 6. Nxd4 {[%emt 0:00:06]} Qc7 {[%emt 0:01:51]} 7. Be3 {[%emt 0:03:27]} Nf6 {[%emt 0:01:20]} 8. Be2 {[%emt 0:01:48]} b6 {[%emt 0:04:29]} 9. O-O {[%emt 0:03:59]} Bb7 {[%emt 0:03:17]} 10. f3 {[%emt 0:01:52]} Be7 {[%emt 0:01:24]} 11. Qd2 {[%emt 0:02:55]} d6 {[%emt 0:07:01]} 12. Rad1 {[%emt 0:04:17]} O-O {[%emt 0:02:12]} 13. b3 {[%emt 0:04:48]} Rac8 {[%emt 0:03:07]} 14. Na4 {[%emt 0:16:02]} Nd7 {[%emt 0:03:57]} 15. Nxc6 {[%emt 0:09:18]} Bxc6 {[%emt 0:02:57]} 16. Nc3 {[%emt 0:02:08]} Rfd8 {[%emt 0:07:00]} 17. Bf4 {[%emt 0:05:45]} Nf6 {[%emt 0:13:03]} 18. Qb2 {[%emt 0:05:30]} Qb7 {[%emt 0:02:59]} 19. Rd2 {[%emt 0:07:19]} d5 {[%emt 0:02:47]} 20. cxd5 {[%emt 0:04:20]} exd5 {[%emt 0:03:15]} 21. exd5 {[%emt 0:00:27]} Nxd5 {[%emt 0:00:36]} 22. Nxd5 {[%emt 0:00:12]} Rxd5 {[%emt 0:00:40]} 23. Rxd5 {[%emt 0:02:17]} Bxd5 {[%emt 0:02:53]} 24. Rd1 {[%emt 0:00:29]} Bc5+ {[%emt 0:00:20]} 25. Kh1 {[%emt 0:00:26]} a5 {[%emt 0:06:10]} 26. h3 {[%emt 0:02:42]} h6 {[%emt 0:01:55]} 27. Qe5 {[%emt 0:03:07]} Bc6 {[%emt 0:02:21]} 28. Qf5 {[%emt 0:01:01]} g6 {[%emt 0:04:45]} 29. Qg4 {[%emt 0:04:03]} Bf8 {[%emt 0:03:17]} 30. Bc4 {[%emt 0:01:45]} Kh7 {[%emt 0:01:06]} 31. Bxf7 {[%emt 0:02:44]} Qxf7 {[%emt 0:02:35]} 32. Qxc8 {[%emt 0:00:14]} Qxf4 {[%emt 0:00:29]} 33. Qxc6 {[%emt 0:00:41]} Qb4 {[%emt 0:05:13]} 34. Rd7+ {[%emt 0:03:51]} Bg7 {[%emt 0:00:14]} 35. Qf6 {[%emt 0:02:48]} 1-0

[Event "CZE-ch Youth B12 2022"]
[Site "Luhacovice"]
[Date "2022.03.18"]
[Round "8.7"]
[White "Chon, Jeremy"]
[Black "Krautschneider, Daniel Jan"]
[Result "1/2-1/2"]
[ECO "D02"]
[WhiteElo "1455"]
[BlackElo "1304"]
[Annotator "NA"]
[PlyCount "208"]
[EventDate "2022.03.12"]
[EventType "swiss"]
[EventCountry "CZE"]
[SourceTitle "playchess.com"]
[Source "ChessBase"]
[SourceQuality "1"]
[TimeControl "5400+30"]

1. Nf3 {[%emt 0:00:02]} d5 {[%emt 0:00:07]} 2. d4 {[%emt 0:00:01]} Nf6 {[%emt 0:00:12]} 3. Bf4 {[%emt 0:00:02]} e6 {[%emt 0:00:08]} 4. e3 {[%emt 0:00:25]} Be7 {[%emt 0:00:07]} 5. Bd3 {[%emt 0:00:26]} O-O {[%emt 0:00:08]} 6. h3 {[%emt 0:01:08]} b6 {[%emt 0:00:08]} 7. O-O {[%emt 0:00:28]} Bb7 {[%emt 0:00:08]} 8. c4 {[%emt 0:10:34]} Ne4 {[%emt 0:00:16]} 9. Nc3 {[%emt 0:02:07]} f5 {[%emt 0:00:09]} 10. Qc2 {[%emt 0:09:21]} Nd7 {[%emt 0:01:55]} 11. cxd5 {[%emt 0:10:31]} exd5 {[%emt 0:00:17]} 12. Nb5 {[%emt 0:04:33]} Bd6 {[%emt 0:06:31]} 13. Nxd6 {[%emt 0:10:00]} cxd6 {[%emt 0:00:16]} 14. Qb3 {[%emt 0:03:44]} Kh8 {[%emt 0:02:45]} 15. Rfd1 {[%emt 0:06:41]} g5 {[%emt 0:11:17]} 16. Bxe4 {[%emt 0:04:28]} dxe4 {[%emt 0:11:40]} 17. Nxg5 {[%emt 0:02:05]} Qf6 {[%emt 0:01:04]} 18. Qe6 {[%emt 0:05:56]} h6 {[%emt 0:27:12]} 19. Bxd6 {[%emt 0:09:12]} hxg5 {[%emt 0:17:28]} 20. Qxd7 {[%emt 0:01:32]} Rf7 {[%emt 0:01:38]} 21. Be5 {[%emt 0:01:59]} Rxd7 {[%emt 0:01:07]} 22. Bxf6+ {[%emt 0:01:36]} Kg8 {[%emt 0:00:05]} 23. Rac1 {[%emt 0:01:23]} g4 {[%emt 0:01:32]} 24. hxg4 {[%emt 0:00:37]} fxg4 {[%emt 0:00:11]} 25. Rc2 {[%emt 0:01:57]} Kf7 {[%emt 0:01:01]} 26. Be5 {[%emt 0:00:10]} Re8 {[%emt 0:00:44]} 27. Rdc1 {[%emt 0:00:18]} Ree7 {[%emt 0:00:08]} 28. Kh2 {[%emt 0:01:00]} Kg6 {[%emt 0:00:59]} 29. Rc7 {[%emt 0:00:40]} Bd5 {[%emt 0:02:21]} 30. a3 b5 {[%emt 0:00:46]} 31. Rxd7 {[%emt 0:04:13]} Rxd7 {[%emt 0:00:09]} 32. Rc7 {[%emt 0:00:18]} Rxc7 {[%emt 0:00:55]} 33. Bxc7 {[%emt 0:00:02]} a6 {[%emt 0:00:16]} 34. Kg3 {[%emt 0:00:08]} Kf5 {[%emt 0:00:15]} 35. Kh4 {[%emt 0:04:50]} Bf7 {[%emt 0:00:37]} 36. Bf4 {[%emt 0:02:18]} a5 {[%emt 0:01:28]} 37. Bc7 {[%emt 0:01:05]} a4 {[%emt 0:00:10]} 38. Bf4 {[%emt 0:00:11]} Be6 {[%emt 0:00:19]} 39. Kh5 {[%emt 0:00:12]} Bc4 {[%emt 0:00:53]} 40. Kh6 {[%emt 0:00:21]} Kf6 {[%emt 0:00:27]} 41. Be5+ {[%emt 0:00:50]} Kf5 {[%emt 0:01:03]} 42. Kg7 {[%emt 0:00:32]} Bb3 {[%emt 0:00:59]} 43. Bf4 {[%emt 0:02:01]} Bc4 {[%emt 0:00:21]} 44. Kf8 {[%emt 0:00:55]} Ke6 {[%emt 0:00:42]} 45. Ke8 {[%emt 0:00:42]} Ba2 {[%emt 0:00:16]} 46. Kd8 {[%emt 0:00:10]} Bb3 {[%emt 0:00:28]} 47. Kc7 {[%emt 0:00:08]} Kd5 {[%emt 0:00:22]} 48. Kb6 {[%emt 0:00:26]} Bc4 {[%emt 0:00:12]} 49. Bb8 {[%emt 0:00:57]} Bf1 {[%emt 0:00:27]} 50. Bf4 {[%emt 0:01:01]} Bc4 {[%emt 0:00:11]} 51. Ka5 {[%emt 0:00:06]} Bd3 {[%emt 0:00:24]} 52. Kb4 {[%emt 0:00:01]} Bc4 {[%emt 0:00:13]} 53. Bb8 {[%emt 0:00:16]} Kc6 {[%emt 0:00:22]} 54. Bf4 {[%emt 0:00:26]} Kd5 {[%emt 0:00:06]} 55. Kc3 {[%emt 0:01:07]} Ke6 {[%emt 0:00:28]} 56. Kd2 {[%emt 0:00:52]} Bf1 {[%emt 0:00:46]} 57. f3 {[%emt 0:00:45]} exf3 {[%emt 0:01:10]} 58. gxf3 {[%emt 0:00:02]} gxf3 {[%emt 0:00:10]} 59. e4 {[%emt 0:00:33]} f2 {[%emt 0:00:15]} 60. Ke3 {[%emt 0:00:35]} Bd3 {[%emt 0:00:30]} 61. Kxf2 {[%emt 0:00:02]} Bxe4 {[%emt 0:00:18]} 62. Bd2 {[%emt 0:00:37]} Kd5 {[%emt 0:00:19]} 63. Ke3 {[%emt 0:00:19]} Bc2 {[%emt 0:00:20]} 64. Bc3 {[%emt 0:00:08]} Bb3 {[%emt 0:01:48]} 65. Kf4 {[%emt 0:00:09]} Bc4 {[%emt 0:00:09]} 66. Kf5 {[%emt 0:00:19]} Bf1 {[%emt 0:00:12]} 67. Kf6 {[%emt 0:00:09]} Bc4 {[%emt 0:00:06]} 68. Ke7 {[%emt 0:00:04]} Bf1 {[%emt 0:00:11]} 69. Kd7 {[%emt 0:00:18]} Bc4 {[%emt 0:00:06]} 70. Kc7 {[%emt 0:00:04]} Bf1 {[%emt 0:00:09]} 71. Kb6 {[%emt 0:00:05]} Be2 {[%emt 0:00:12]} 72. Ka5 {[%emt 0:00:08]} Bd3 {[%emt 0:00:06]} 73. Kb4 {[%emt 0:00:12]} Bc4 {[%emt 0:00:10]} 74. Ka5 {[%emt 0:01:36]} Bd3 {[%emt 0:00:13]} 75. Kb6 {[%emt 0:00:01]} Bc4 {[%emt 0:00:14]} 76. Kc7 {[%emt 0:00:01]} Bd3 {[%emt 0:00:07]} 77. Kd7 {[%emt 0:00:03]} Bc4 {[%emt 0:00:33]} 78. Ke7 {[%emt 0:00:12]} Bd3 {[%emt 0:00:05]} 79. Kf6 {[%emt 0:00:02]} Be2 {[%emt 0:00:05]} 80. Kf5 {[%emt 0:00:06]} Bc4 {[%emt 0:00:10]} 81. Kf4 {[%emt 0:00:02]} Bf1 {[%emt 0:00:08]} 82. Ke3 {[%emt 0:00:16]} Bc4 {[%emt 0:00:06]} 83. Kd2 {[%emt 0:00:14]} Bf1 {[%emt 0:00:10]} 84. Kc2 {[%emt 0:00:43]} Bc4 {[%emt 0:00:10]} 85. Kd2 {[%emt 0:00:36]} Bf1 {[%emt 0:00:07]} 86. Ke3 {[%emt 0:00:02]} Bc4 {[%emt 0:00:13]} 87. Kf4 {[%emt 0:00:03]} Bf1 {[%emt 0:00:11]} 88. Kf5 {[%emt 0:00:12]} Bc4 {[%emt 0:00:11]} 89. Kf6 {[%emt 0:00:02]} Bd3 {[%emt 0:00:09]} 90. Ke7 {[%emt 0:00:03]} Bc4 {[%emt 0:00:06]} 91. Kd7 {[%emt 0:00:06]} Bd3 {[%emt 0:00:20]} 92. Kc7 {[%emt 0:00:02]} Be2 {[%emt 0:00:12]} 93. Kb6 {[%emt 0:00:09]} Bf1 {[%emt 0:00:06]} 94. Ka5 {[%emt 0:00:04]} Be2 {[%emt 0:00:12]} 95. Kb4 {[%emt 0:01:38]} Bd3 {[%emt 0:00:13]} 96. b3 {[%emt 0:00:50]} axb3 {[%emt 0:00:06]} 97. Kxb3 {[%emt 0:00:02]} Bc4+ {[%emt 0:00:08]} 98. Kb4 {[%emt 0:00:08]} Bd3 {[%emt 0:00:05]} 99. Bb2 {[%emt 0:00:07]} Be2 {[%emt 0:00:07]} 100. Kc3 {[%emt 0:00:18]} Bf1 {[%emt 0:00:12]} 101. Bc1 {[%emt 0:00:04]} Be2 {[%emt 0:00:06]} 102. Bg5 {[%emt 0:00:18]} Bf1 {[%emt 0:00:08]} 103. Bf6 {[%emt 0:00:14]} Be2 {[%emt 0:00:08]} 104. Kb4 {[%emt 0:00:05]} Bf1 {[%emt 0:00:08]} 1/2-1/2